[Event "January 9 Late 2024"]
[Site "https://www.chess.com"]
[Date "2024.01.10"]
[Round "9"]
[White "Hungaski, Robert"]
[Black "Heberla, Bartlomiej"]
[Result "1-0"]
[Board "77"]
[TimeControl "180+1"]
[WhiteFideId "2021030"]
[BlackFideId "1115120"]
[WhiteElo "2498"]
[BlackElo "2670"]
[WhiteTeam "USA"]
[BlackTeam "POL"]
[WhiteClock "0:00:30"]
[BlackClock "0:00:08"]

1. e4 {[%clk 0:03:00]}  e5 {[%clk 0:03:00]} 2. Nf3 {[%clk 0:03:00]}  Nc6 {[%clk 0:03:00]} 3. d4 {[%clk 0:03:00]}  exd4 {[%clk 0:03:00]} 4. Nxd4 {[%clk 0:02:59]}  Bc5 {[%clk 0:03:00]} 5. Be3 {[%clk 0:02:57]}  Qf6 {[%clk 0:03:00]} 6. Nb5 {[%clk 0:02:57]}  Bxe3 {[%clk 0:02:53]} 7. fxe3 {[%clk 0:02:57]}  Qh4+ {[%clk 0:02:51]} 8. g3 {[%clk 0:02:57]}  Qxe4 {[%clk 0:02:52]} 9. Nxc7+ {[%clk 0:02:55]}  Kd8 {[%clk 0:02:38]} 10. Nxa8 {[%clk 0:02:54]}  Qxh1 {[%clk 0:02:37]} 11. Qd6 {[%clk 0:02:54]}  Nf6 {[%clk 0:02:31]} 12. Nd2 {[%clk 0:02:47]}  Qd5 {[%clk 0:01:51]} 13. Qc7+ {[%clk 0:02:26]}  Ke7 {[%clk 0:01:50]} 14. O-O-O {[%clk 0:02:23]}  Qe5 {[%clk 0:01:44]} 15. Nc4 {[%clk 0:02:11]}  Qxc7 {[%clk 0:01:43]} 16. Nxc7 {[%clk 0:02:12]}  d5 {[%clk 0:01:30]} 17. Nxd5+ {[%clk 0:02:00]}  Nxd5 {[%clk 0:01:31]} 18. Rxd5 {[%clk 0:02:00]}  Be6 {[%clk 0:01:32]} 19. Rc5 {[%clk 0:02:01]}  h5 {[%clk 0:01:13]} 20. h4 {[%clk 0:02:00]}  Rh6 {[%clk 0:01:06]} 21. Bd3 {[%clk 0:02:00]}  Bd7 {[%clk 0:00:38]} 22. a3 {[%clk 0:01:50]}  Rh8 {[%clk 0:00:24]} 23. b4 {[%clk 0:01:49]}  b6 {[%clk 0:00:24]} 24. Rg5 {[%clk 0:01:48]}  g6 {[%clk 0:00:24]} 25. b5 {[%clk 0:01:30]}  Nd8 {[%clk 0:00:24]} 26. a4 {[%clk 0:01:20]}  Ne6 {[%clk 0:00:21]} 27. Rd5 {[%clk 0:01:20]}  Nc5 {[%clk 0:00:20]} 28. a5 {[%clk 0:01:16]}  Be6 {[%clk 0:00:21]} 29. Rd4 {[%clk 0:01:14]}  Bxc4 {[%clk 0:00:17]} 30. Rxc4 {[%clk 0:01:13]}  Rd8 {[%clk 0:00:17]} 31. axb6 {[%clk 0:01:12]}  axb6 {[%clk 0:00:18]} 32. Kd2 {[%clk 0:01:09]}  Ra8 {[%clk 0:00:10]} 33. Rd4 {[%clk 0:01:03]}  Ra1 {[%clk 0:00:11]} 34. Be2 {[%clk 0:00:57]}  Rg1 {[%clk 0:00:11]} 35. g4 {[%clk 0:00:57]}  Ne6 {[%clk 0:00:10]} 36. Ra4 {[%clk 0:00:53]}  hxg4 {[%clk 0:00:10]} 37. Rxg4 {[%clk 0:00:51]}  Rh1 {[%clk 0:00:08]} 38. Bf3 {[%clk 0:00:30]}  Nc5 {[%clk 0:00:08]} 39. Bxh1 {[%clk 0:00:30]} 1-0

[Event "January 9 Late 2024"]
[Site "https://www.chess.com"]
[Date "2024.01.09"]
[Round "9"]
[White "Mizzi, Jack"]
[Black "Kleiman, Jake"]
[Result "0-1"]
[Board "79"]
[TimeControl "180+1"]
[WhiteFideId "5602521"]
[BlackFideId "2020041"]
[WhiteElo "2493"]
[BlackElo "2660"]
[WhiteTeam "MLT"]
[BlackTeam "USA"]
[WhiteClock "0:00:02"]
[BlackClock "0:00:34"]

1. d4 {[%clk 0:03:00]}  Nf6 {[%clk 0:02:58]} 2. c4 {[%clk 0:03:01]}  e6 {[%clk 0:02:58]} 3. g3 {[%clk 0:03:01]}  Bb4+ {[%clk 0:02:57]} 4. Nd2 {[%clk 0:03:01]}  O-O {[%clk 0:02:57]} 5. Bg2 {[%clk 0:03:01]}  d5 {[%clk 0:02:56]} 6. Qc2 {[%clk 0:03:01]}  b6 {[%clk 0:02:56]} 7. Nf3 {[%clk 0:03:00]}  Bb7 {[%clk 0:02:56]} 8. O-O {[%clk 0:03:00]}  dxc4 {[%clk 0:02:57]} 9. Nxc4 {[%clk 0:02:58]}  Be4 {[%clk 0:02:51]} 10. Qb3 {[%clk 0:02:46]}  Be7 {[%clk 0:02:51]} 11. Rd1 {[%clk 0:02:37]}  Nbd7 {[%clk 0:02:48]} 12. Nfe5 {[%clk 0:02:35]}  Bxg2 {[%clk 0:02:46]} 13. Kxg2 {[%clk 0:02:34]}  Qc8 {[%clk 0:02:35]} 14. Nc6 {[%clk 0:02:28]}  Re8 {[%clk 0:02:28]} 15. Qf3 {[%clk 0:02:23]}  Bf8 {[%clk 0:02:23]} 16. N4e5 {[%clk 0:02:16]}  Nxe5 {[%clk 0:02:14]} 17. dxe5 {[%clk 0:02:11]}  Nd5 {[%clk 0:02:14]} 18. Bd2 {[%clk 0:01:42]}  Ne7 {[%clk 0:02:05]} 19. Nxe7+ {[%clk 0:01:31]}  Bxe7 {[%clk 0:02:05]} 20. Qc6 {[%clk 0:01:30]}  Qa6 {[%clk 0:01:57]} 21. Kf1 {[%clk 0:01:16]}  Rac8 {[%clk 0:01:54]} 22. Be3 {[%clk 0:01:11]}  Qa5 {[%clk 0:01:46]} 23. f4 {[%clk 0:01:03]}  Qb4 {[%clk 0:01:37]} 24. b3 {[%clk 0:00:50]}  Red8 {[%clk 0:01:33]} 25. Kg2 {[%clk 0:00:40]}  h5 {[%clk 0:01:30]} 26. h4 {[%clk 0:00:34]}  Bf8 {[%clk 0:01:26]} 27. Rac1 {[%clk 0:00:21]}  g6 {[%clk 0:01:21]} 28. Qc2 {[%clk 0:00:04]}  c5 {[%clk 0:01:19]} 29. Rxd8 {[%clk 0:00:02]}  Rxd8 {[%clk 0:01:19]} 30. Rd1 {[%clk 0:00:02]}  Rd5 {[%clk 0:01:09]} 31. Rxd5 {[%clk 0:00:02]}  exd5 {[%clk 0:01:09]} 32. f5 {[%clk 0:00:02]}  Qg4 {[%clk 0:01:03]} 33. fxg6 {[%clk 0:00:02]}  fxg6 {[%clk 0:01:03]} 34. Bf2 {[%clk 0:00:02]}  Kf7 {[%clk 0:00:53]} 35. Qd3 {[%clk 0:00:01]}  Qe4+ {[%clk 0:00:51]} 36. Qf3+ {[%clk 0:00:01]}  Ke6 {[%clk 0:00:49]} 37. Be1 {[%clk 0:00:01]}  Bg7 {[%clk 0:00:46]} 38. Bc3 {[%clk 0:00:01]}  Bxe5 {[%clk 0:00:45]} 39. Bxe5 {[%clk 0:00:01]}  Kxe5 {[%clk 0:00:44]} 40. Kf2 {[%clk 0:00:02]}  Qxf3+ {[%clk 0:00:44]} 41. exf3 {[%clk 0:00:02]}  b5 {[%clk 0:00:42]} 42. Ke3 {[%clk 0:00:02]}  d4+ {[%clk 0:00:38]} 43. Kd3 {[%clk 0:00:02]}  Kd5 {[%clk 0:00:39]} 44. a3 {[%clk 0:00:02]}  c4+ {[%clk 0:00:39]} 45. bxc4+ {[%clk 0:00:02]}  bxc4+ {[%clk 0:00:40]} 46. Kd2 {[%clk 0:00:03]}  Kc5 {[%clk 0:00:39]} 47. Kc2 {[%clk 0:00:03]}  Kd5 {[%clk 0:00:37]} 48. Kd2 {[%clk 0:00:03]}  Ke5 {[%clk 0:00:38]} 49. Ke2 {[%clk 0:00:03]}  Kf5 {[%clk 0:00:37]} 50. Kd2 {[%clk 0:00:03]}  g5 {[%clk 0:00:33]} 51. hxg5 {[%clk 0:00:02]}  Kxg5 {[%clk 0:00:33]} 52. Kc2 {[%clk 0:00:01]}  h4 {[%clk 0:00:33]} 53. f4+ {[%clk 0:00:02]}  Kg4 {[%clk 0:00:33]} 54. f5 {[%clk 0:00:01]}  Kxf5 {[%clk 0:00:33]} 55. gxh4 {[%clk 0:00:01]}  Kg4 {[%clk 0:00:34]} 56. a4 {[%clk 0:00:01]}  Kxh4 {[%clk 0:00:34]} 57. Kb2 {[%clk 0:00:02]}  Kg3 {[%clk 0:00:34]} 58. Ka3 {[%clk 0:00:03]}  Kf2 {[%clk 0:00:34]} 59. Kb4 {[%clk 0:00:04]}  d3 {[%clk 0:00:34]} 60. Kc3 {[%clk 0:00:02]}  Ke2 {[%clk 0:00:34]} 0-1

[Event "January 9 Late 2024"]
[Site "https://www.chess.com"]
[Date "2024.01.09"]
[Round "9"]
[White "Suich, Peter D"]
[Black "Rosen, Eric"]
[Result "0-1"]
[Board "80"]
[TimeControl "180+1"]
[WhiteFideId "2050366"]
[BlackFideId "2032562"]
[WhiteElo "2492"]
[BlackElo "2648"]
[WhiteTeam "USA"]
[BlackTeam "USA"]
[WhiteClock "0:00:00"]
[BlackClock "0:00:04"]

1. d4 {[%clk 0:03:00]}  d5 {[%clk 0:02:55]} 2. c4 {[%clk 0:03:01]}  e6 {[%clk 0:02:55]} 3. Nf3 {[%clk 0:03:01]}  Nf6 {[%clk 0:02:55]} 4. g3 {[%clk 0:03:02]}  dxc4 {[%clk 0:02:55]} 5. Bg2 {[%clk 0:03:02]}  Bb4+ {[%clk 0:02:54]} 6. Bd2 {[%clk 0:03:02]}  c5 {[%clk 0:02:55]} 7. Bxb4 {[%clk 0:02:57]}  cxb4 {[%clk 0:02:56]} 8. Ne5 {[%clk 0:02:57]}  O-O {[%clk 0:02:54]} 9. Nxc4 {[%clk 0:02:56]}  Nc6 {[%clk 0:02:52]} 10. e3 {[%clk 0:02:55]}  e5 {[%clk 0:02:53]} 11. dxe5 {[%clk 0:02:49]}  Qxd1+ {[%clk 0:02:52]} 12. Kxd1 {[%clk 0:02:50]}  Ng4 {[%clk 0:02:49]} 13. Ke2 {[%clk 0:02:48]}  Ngxe5 {[%clk 0:02:49]} 14. Nbd2 {[%clk 0:02:46]}  Bg4+ {[%clk 0:02:45]} 15. f3 {[%clk 0:02:46]}  Bf5 {[%clk 0:02:46]} 16. Nxe5 {[%clk 0:02:36]}  Nxe5 {[%clk 0:02:42]} 17. e4 {[%clk 0:02:37]}  Bd7 {[%clk 0:02:42]} 18. f4 {[%clk 0:02:34]}  Bb5+ {[%clk 0:02:30]} 19. Ke3 {[%clk 0:02:31]}  Ng4+ {[%clk 0:02:16]} 20. Kf3 {[%clk 0:02:28]}  Rad8 {[%clk 0:02:05]} 21. Rad1 {[%clk 0:02:11]}  h5 {[%clk 0:01:30]} 22. Nb3 {[%clk 0:01:41]}  Nxh2+ {[%clk 0:01:30]} 23. Kf2 {[%clk 0:01:36]}  Ng4+ {[%clk 0:01:30]} 24. Kf3 {[%clk 0:01:36]}  Bc6 {[%clk 0:01:03]} 25. Rxd8 {[%clk 0:01:13]}  Rxd8 {[%clk 0:01:03]} 26. Rxh5 {[%clk 0:01:14]}  Nf6 {[%clk 0:00:44]} 27. Re5 {[%clk 0:01:06]}  Nxe4 {[%clk 0:00:45]} 28. Bf1 {[%clk 0:00:44]}  f6 {[%clk 0:00:26]} 29. Ra5 {[%clk 0:00:13]}  a6 {[%clk 0:00:12]} 30. Bc4+ {[%clk 0:00:12]}  Kf8 {[%clk 0:00:12]} 31. Rh5 {[%clk 0:00:10]}  Nd2+ {[%clk 0:00:07]} 32. Ke2 {[%clk 0:00:04]}  Nxc4 {[%clk 0:00:07]} 33. Nc5 {[%clk 0:00:03]}  Kf7 {[%clk 0:00:05]} 34. f5 {[%clk 0:00:02]}  Rd2+ {[%clk 0:00:05]} 35. Ke1 {[%clk 0:00:00]}  Rd5 {[%clk 0:00:04]} 0-1

[Event "January 9 Late 2024"]
[Site "https://www.chess.com"]
[Date "2024.01.09"]
[Round "9"]
[White "Murtazin, Bulat"]
[Black "Vlassov, Nikolai"]
[Result "1-0"]
[Board "81"]
[TimeControl "180+1"]
[WhiteFideId "24151351"]
[BlackFideId "4103360"]
[WhiteElo "2489"]
[BlackElo "2634"]
[WhiteTeam "RUS"]
[BlackTeam "FID"]
[WhiteClock "0:00:09"]
[BlackClock "0:00:00"]

1. e4 {[%clk 0:03:00]}  c5 {[%clk 0:02:56]} 2. Nf3 {[%clk 0:03:00]}  d6 {[%clk 0:02:56]} 3. d4 {[%clk 0:03:01]}  cxd4 {[%clk 0:02:56]} 4. Nxd4 {[%clk 0:03:02]}  Nf6 {[%clk 0:02:57]} 5. Nc3 {[%clk 0:03:02]}  g6 {[%clk 0:02:57]} 6. Be2 {[%clk 0:03:02]}  Bg7 {[%clk 0:02:56]} 7. O-O {[%clk 0:03:03]}  O-O {[%clk 0:02:56]} 8. Re1 {[%clk 0:03:03]}  Nc6 {[%clk 0:02:56]} 9. Nb3 {[%clk 0:03:04]}  Be6 {[%clk 0:02:55]} 10. Bf1 {[%clk 0:03:04]}  Qc8 {[%clk 0:02:54]} 11. Bg5 {[%clk 0:03:01]}  Rd8 {[%clk 0:02:52]} 12. Nd5 {[%clk 0:02:59]}  Bxd5 {[%clk 0:02:43]} 13. exd5 {[%clk 0:03:00]}  Nb4 {[%clk 0:02:43]} 14. Bxf6 {[%clk 0:02:44]}  Bxf6 {[%clk 0:02:42]} 15. c3 {[%clk 0:02:44]}  Na6 {[%clk 0:02:39]} 16. Bxa6 {[%clk 0:02:44]}  bxa6 {[%clk 0:02:38]} 17. Qd3 {[%clk 0:02:30]}  Rb8 {[%clk 0:02:33]} 18. Re2 {[%clk 0:02:30]}  Rb5 {[%clk 0:02:27]} 19. Rc1 {[%clk 0:02:10]}  Qb7 {[%clk 0:02:20]} 20. c4 {[%clk 0:02:08]}  Rb4 {[%clk 0:02:19]} 21. Na5 {[%clk 0:02:03]}  Qb6 {[%clk 0:02:05]} 22. Nc6 {[%clk 0:02:03]}  a5 {[%clk 0:01:32]} 23. Nxd8 {[%clk 0:01:53]}  Qxd8 {[%clk 0:01:31]} 24. b3 {[%clk 0:01:44]}  Qb6 {[%clk 0:01:27]} 25. Qe3 {[%clk 0:01:43]}  Qb7 {[%clk 0:01:26]} 26. g3 {[%clk 0:01:41]}  a4 {[%clk 0:01:25]} 27. bxa4 {[%clk 0:01:40]}  Rxa4 {[%clk 0:01:23]} 28. Qd3 {[%clk 0:01:25]}  Kg7 {[%clk 0:01:20]} 29. Rec2 {[%clk 0:01:04]}  Qa6 {[%clk 0:01:17]} 30. Qe2 {[%clk 0:01:04]}  Ra3 {[%clk 0:01:10]} 31. Rb1 {[%clk 0:01:03]}  h5 {[%clk 0:01:08]} 32. h4 {[%clk 0:01:01]}  Qa5 {[%clk 0:00:56]} 33. Kg2 {[%clk 0:00:59]}  a6 {[%clk 0:00:54]} 34. Rb3 {[%clk 0:00:58]}  Ra4 {[%clk 0:00:47]} 35. Qd2 {[%clk 0:00:41]}  Qc5 {[%clk 0:00:45]} 36. Qe3 {[%clk 0:00:38]}  Bd4 {[%clk 0:00:22]} 37. Qd3 {[%clk 0:00:37]}  Bf6 {[%clk 0:00:20]} 38. Qe3 {[%clk 0:00:29]}  Bd4 {[%clk 0:00:20]} 39. Qxe7 {[%clk 0:00:29]}  Rxc4 {[%clk 0:00:19]} 40. Rxc4 {[%clk 0:00:30]}  Qxd5+ {[%clk 0:00:19]} 41. Rf3 {[%clk 0:00:23]}  Qxc4 {[%clk 0:00:20]} 42. Qxd6 {[%clk 0:00:23]}  Ba1 {[%clk 0:00:15]} 43. Ra3 {[%clk 0:00:17]}  Qe4+ {[%clk 0:00:13]} 44. Kh2 {[%clk 0:00:15]}  Bd4 {[%clk 0:00:12]} 45. Qf4 {[%clk 0:00:12]}  Qxf4 {[%clk 0:00:08]} 46. gxf4 {[%clk 0:00:13]}  Bxf2 {[%clk 0:00:07]} 47. Kh3 {[%clk 0:00:11]}  Kf6 {[%clk 0:00:04]} 48. Rxa6+ {[%clk 0:00:11]}  Kf5 {[%clk 0:00:05]} 49. Ra4 {[%clk 0:00:10]}  Be1 {[%clk 0:00:04]} 50. Rd4 {[%clk 0:00:08]}  Bf2 {[%clk 0:00:03]} 51. Rc4 {[%clk 0:00:08]}  Be1 {[%clk 0:00:03]} 52. a4 {[%clk 0:00:08]}  Bd2 {[%clk 0:00:04]} 53. Kg3 {[%clk 0:00:08]}  Be1+ {[%clk 0:00:04]} 54. Kf3 {[%clk 0:00:08]}  Bxh4 {[%clk 0:00:04]} 55. a5 {[%clk 0:00:08]}  Bd8 {[%clk 0:00:03]} 56. a6 {[%clk 0:00:09]}  Bb6 {[%clk 0:00:04]} 57. Rb4 {[%clk 0:00:09]}  Bg1 {[%clk 0:00:03]} 58. Rb7 {[%clk 0:00:09]}  f6 {[%clk 0:00:03]} 59. a7 {[%clk 0:00:09]}  Bxa7 {[%clk 0:00:03]} 60. Rxa7 {[%clk 0:00:10]}  g5 {[%clk 0:00:03]} 61. Ra5+ {[%clk 0:00:10]}  Kg6 {[%clk 0:00:03]} 62. f5+ {[%clk 0:00:10]}  Kh6 {[%clk 0:00:04]} 63. Ra7 {[%clk 0:00:09]}  g4+ {[%clk 0:00:01]} 64. Kf4 {[%clk 0:00:10]}  g3 {[%clk 0:00:01]} 65. Kxg3 {[%clk 0:00:08]}  Kg5 {[%clk 0:00:00]} 66. Ra5 {[%clk 0:00:09]} 1-0

[Event "January 9 Late 2024"]
[Site "https://www.chess.com"]
[Date "2024.01.09"]
[Round "9"]
[White "Reprintsev, Alexander"]
[Black "Gubajdullin, Alexei"]
[Result "1-0"]
[Board "82"]
[TimeControl "180+1"]
[WhiteFideId "14100541"]
[BlackFideId "4141202"]
[WhiteElo "2480"]
[BlackElo "2621"]
[WhiteTeam "UKR"]
[BlackTeam "RUS"]
[WhiteClock "0:00:15"]
[BlackClock "0:00:00"]

1. e4 {[%clk 0:02:58]}  e5 {[%clk 0:02:58]} 2. f4 {[%clk 0:02:57]}  exf4 {[%clk 0:02:57]} 3. Bc4 {[%clk 0:02:56]}  d6 {[%clk 0:02:55]} 4. d4 {[%clk 0:02:51]}  Qh4+ {[%clk 0:02:50]} 5. Kf1 {[%clk 0:02:51]}  g5 {[%clk 0:02:40]} 6. Nf3 {[%clk 0:02:50]}  Qh5 {[%clk 0:02:40]} 7. Nc3 {[%clk 0:02:49]}  g4 {[%clk 0:02:38]} 8. Ne1 {[%clk 0:02:48]}  f3 {[%clk 0:02:35]} 9. Nd5 {[%clk 0:02:35]}  Kd8 {[%clk 0:02:24]} 10. Nf4 {[%clk 0:02:33]}  Qh4 {[%clk 0:02:11]} 11. gxf3 {[%clk 0:02:28]}  gxf3 {[%clk 0:01:45]} 12. Nxf3 {[%clk 0:02:26]}  Qe7 {[%clk 0:01:41]} 13. Qd3 {[%clk 0:02:10]}  c6 {[%clk 0:01:40]} 14. Bd2 {[%clk 0:02:02]}  Bh6 {[%clk 0:01:39]} 15. Re1 {[%clk 0:02:00]}  Nf6 {[%clk 0:01:32]} 16. e5 {[%clk 0:01:56]}  Bg4 {[%clk 0:00:59]} 17. Rg1 {[%clk 0:01:41]}  Bxf3 {[%clk 0:00:40]} 18. Qxf3 {[%clk 0:01:27]}  Nfd7 {[%clk 0:00:40]} 19. Bxf7 {[%clk 0:01:19]}  Qxf7 {[%clk 0:00:32]} 20. e6 {[%clk 0:01:19]}  Qf5 {[%clk 0:00:24]} 21. exd7 {[%clk 0:01:18]}  Kxd7 {[%clk 0:00:22]} 22. Re7+ {[%clk 0:00:58]}  Kxe7 {[%clk 0:00:21]} 23. Nd5+ {[%clk 0:00:57]}  Ke6 {[%clk 0:00:21]} 24. Nc7+ {[%clk 0:00:57]}  Kf6 {[%clk 0:00:21]} 25. Qxf5+ {[%clk 0:00:56]}  Kxf5 {[%clk 0:00:21]} 26. Bxh6 {[%clk 0:00:56]}  Nd7 {[%clk 0:00:14]} 27. Nxa8 {[%clk 0:00:55]}  Rxa8 {[%clk 0:00:13]} 28. Rg7 {[%clk 0:00:55]}  Nf6 {[%clk 0:00:13]} 29. Rxb7 {[%clk 0:00:54]}  Re8 {[%clk 0:00:10]} 30. Rxa7 {[%clk 0:00:50]}  Ng4 {[%clk 0:00:10]} 31. Rxh7 {[%clk 0:00:38]}  Nxh2+ {[%clk 0:00:10]} 32. Kg2 {[%clk 0:00:35]}  Re2+ {[%clk 0:00:08]} 33. Kg3 {[%clk 0:00:33]}  Rxc2 {[%clk 0:00:05]} 34. Rb7 {[%clk 0:00:28]}  Ng4 {[%clk 0:00:04]} 35. Bf8 {[%clk 0:00:25]}  Nf6 {[%clk 0:00:03]} 36. a4 {[%clk 0:00:22]}  Ne4+ {[%clk 0:00:03]} 37. Kf3 {[%clk 0:00:22]}  d5 {[%clk 0:00:03]} 38. a5 {[%clk 0:00:21]}  Rc1 {[%clk 0:00:02]} 39. a6 {[%clk 0:00:20]}  Ra1 {[%clk 0:00:03]} 40. a7 {[%clk 0:00:20]}  Ra6 {[%clk 0:00:02]} 41. Bc5 {[%clk 0:00:20]}  Nxc5 {[%clk 0:00:02]} 42. dxc5 {[%clk 0:00:20]}  Ke5 {[%clk 0:00:02]} 43. Ke3 {[%clk 0:00:20]}  d4+ {[%clk 0:00:02]} 44. Kd3 {[%clk 0:00:19]}  Kd5 {[%clk 0:00:03]} 45. b4 {[%clk 0:00:19]}  Ra3+ {[%clk 0:00:02]} 46. Kc2 {[%clk 0:00:20]}  Kc4 {[%clk 0:00:03]} 47. Kb2 {[%clk 0:00:20]}  Ra4 {[%clk 0:00:03]} 48. b5 {[%clk 0:00:18]}  cxb5 {[%clk 0:00:03]} 49. c6 {[%clk 0:00:18]}  d3 {[%clk 0:00:03]} 50. c7 {[%clk 0:00:18]}  Rb4+ {[%clk 0:00:02]} 51. Kc1 {[%clk 0:00:17]}  Kb3 {[%clk 0:00:02]} 52. c8=Q {[%clk 0:00:17]}  Rg4 {[%clk 0:00:00]} 53. Qxg4 {[%clk 0:00:15]} 1-0

[Event "January 9 Late 2024"]
[Site "https://www.chess.com"]
[Date "2024.01.09"]
[Round "9"]
[White "Li, Tedric"]
[Black "Zhu, Jiner"]
[Result "0-1"]
[Board "83"]
[TimeControl "180+1"]
[WhiteFideId "3242897"]
[BlackFideId "8608059"]
[WhiteElo "2473"]
[BlackElo "2606"]
[WhiteTeam "AUS"]
[BlackTeam "CHN"]
[WhiteClock "0:00:11"]
[BlackClock "0:00:39"]

1. d4 {[%clk 0:02:54]}  Nf6 {[%clk 0:02:59]} 2. c4 {[%clk 0:02:55]}  g6 {[%clk 0:02:56]} 3. Nc3 {[%clk 0:02:55]}  Bg7 {[%clk 0:02:57]} 4. e4 {[%clk 0:02:55]}  d6 {[%clk 0:02:58]} 5. Be2 {[%clk 0:02:55]}  O-O {[%clk 0:02:58]} 6. Nf3 {[%clk 0:02:56]}  Nc6 {[%clk 0:02:57]} 7. d5 {[%clk 0:02:56]}  Ne5 {[%clk 0:02:55]} 8. Nxe5 {[%clk 0:02:56]}  dxe5 {[%clk 0:02:55]} 9. O-O {[%clk 0:02:57]}  Nd7 {[%clk 0:02:45]} 10. Be3 {[%clk 0:02:56]}  f5 {[%clk 0:02:45]} 11. f3 {[%clk 0:02:53]}  Nf6 {[%clk 0:02:39]} 12. b4 {[%clk 0:02:51]}  f4 {[%clk 0:02:38]} 13. Bf2 {[%clk 0:02:51]}  g5 {[%clk 0:02:38]} 14. c5 {[%clk 0:02:50]}  h5 {[%clk 0:02:38]} 15. Bc4 {[%clk 0:02:48]}  Kh8 {[%clk 0:02:38]} 16. Qe2 {[%clk 0:02:37]}  Qe8 {[%clk 0:02:36]} 17. Rfd1 {[%clk 0:02:34]}  Qg6 {[%clk 0:02:33]} 18. d6 {[%clk 0:02:24]}  exd6 {[%clk 0:02:34]} 19. cxd6 {[%clk 0:02:25]}  c6 {[%clk 0:02:34]} 20. b5 {[%clk 0:02:15]}  Bd7 {[%clk 0:02:34]} 21. bxc6 {[%clk 0:02:15]}  bxc6 {[%clk 0:02:35]} 22. Na4 {[%clk 0:02:11]}  g4 {[%clk 0:02:35]} 23. Kh1 {[%clk 0:02:11]}  g3 {[%clk 0:02:29]} 24. Bg1 {[%clk 0:02:10]}  gxh2 {[%clk 0:02:28]} 25. Bf2 {[%clk 0:02:09]}  h4 {[%clk 0:02:26]} 26. Bxh4 {[%clk 0:01:46]}  Nh5 {[%clk 0:02:18]} 27. Nc5 {[%clk 0:01:43]}  Rad8 {[%clk 0:02:12]} 28. Rab1 {[%clk 0:01:37]}  Ng3+ {[%clk 0:02:03]} 29. Bxg3 {[%clk 0:01:37]}  fxg3 {[%clk 0:02:03]} 30. Rb7 {[%clk 0:01:29]}  Bc8 {[%clk 0:02:03]} 31. Rxa7 {[%clk 0:01:29]}  Rxd6 {[%clk 0:02:04]} 32. Ra3 {[%clk 0:01:15]}  Rfd8 {[%clk 0:01:40]} 33. Rad3 {[%clk 0:01:15]}  Rd4 {[%clk 0:01:39]} 34. Nb3 {[%clk 0:01:10]}  Rxd3 {[%clk 0:01:34]} 35. Rxd3 {[%clk 0:01:11]}  Rxd3 {[%clk 0:01:31]} 36. Qxd3 {[%clk 0:01:11]}  Qg5 {[%clk 0:01:27]} 37. a4 {[%clk 0:01:06]}  Qe7 {[%clk 0:01:21]} 38. Qd2 {[%clk 0:00:48]}  Kh7 {[%clk 0:01:15]} 39. a5 {[%clk 0:00:47]}  Bh6 {[%clk 0:01:12]} 40. Qe1 {[%clk 0:00:40]}  Qa7 {[%clk 0:01:06]} 41. Bd3 {[%clk 0:00:22]}  Be6 {[%clk 0:01:02]} 42. Na1 {[%clk 0:00:17]}  Bd2 {[%clk 0:01:00]} 43. Qf1 {[%clk 0:00:14]}  Qxa5 {[%clk 0:00:59]} 44. Nc2 {[%clk 0:00:15]}  Bf4 {[%clk 0:00:56]} 45. Bc4 {[%clk 0:00:14]}  Bc8 {[%clk 0:00:49]} 46. Ne1 {[%clk 0:00:14]}  Qc3 {[%clk 0:00:46]} 47. Be2 {[%clk 0:00:13]}  Qe3 {[%clk 0:00:42]} 48. Nd3 {[%clk 0:00:13]}  Be6 {[%clk 0:00:39]} 49. Nxf4 {[%clk 0:00:13]}  exf4 {[%clk 0:00:40]} 50. Ba6 {[%clk 0:00:13]}  Kh6 {[%clk 0:00:40]} 51. Qd1 {[%clk 0:00:12]}  c5 {[%clk 0:00:40]} 52. Bf1 {[%clk 0:00:11]}  Qg1# {[%clk 0:00:39]} 0-1

[Event "January 9 Late 2024"]
[Site "https://www.chess.com"]
[Date "2024.01.09"]
[Round "9"]
[White "Urbina Perez, Juan Antonio"]
[Black "Espinoza Villanueva, Rodrigo"]
[Result "1/2-1/2"]
[Board "86"]
[TimeControl "180+1"]
[WhiteFideId "2217368"]
[BlackFideId "5140188"]
[WhiteElo "2515"]
[BlackElo "2590"]
[WhiteTeam "ESP"]
[BlackTeam "MEX"]
[WhiteClock "0:01:41"]
[BlackClock "0:01:23"]

1. d4 {[%clk 0:02:56]}  Nf6 {[%clk 0:02:57]} 2. c4 {[%clk 0:02:57]}  e6 {[%clk 0:02:56]} 3. Nf3 {[%clk 0:02:57]}  c5 {[%clk 0:02:52]} 4. d5 {[%clk 0:02:55]}  exd5 {[%clk 0:02:52]} 5. cxd5 {[%clk 0:02:56]}  d6 {[%clk 0:02:53]} 6. Nc3 {[%clk 0:02:56]}  g6 {[%clk 0:02:50]} 7. h3 {[%clk 0:02:56]}  Bg7 {[%clk 0:02:50]} 8. Bf4 {[%clk 0:02:57]}  O-O {[%clk 0:02:47]} 9. e3 {[%clk 0:02:57]}  Re8 {[%clk 0:02:41]} 10. Be2 {[%clk 0:02:57]}  Nbd7 {[%clk 0:02:30]} 11. O-O {[%clk 0:02:55]}  Nb6 {[%clk 0:02:27]} 12. a4 {[%clk 0:02:52]}  a5 {[%clk 0:02:21]} 13. Bb5 {[%clk 0:02:46]}  Bd7 {[%clk 0:02:16]} 14. Be2 {[%clk 0:02:44]}  c4 {[%clk 0:02:10]} 15. Re1 {[%clk 0:02:36]}  Qc7 {[%clk 0:02:07]} 16. Bf1 {[%clk 0:02:28]}  Rad8 {[%clk 0:02:01]} 17. e4 {[%clk 0:02:28]}  Qc5 {[%clk 0:01:53]} 18. Be3 {[%clk 0:02:23]}  Qb4 {[%clk 0:01:53]} 19. Bd4 {[%clk 0:02:18]}  Rc8 {[%clk 0:01:51]} 20. Qd2 {[%clk 0:02:15]}  Nh5 {[%clk 0:01:45]} 21. Bxg7 {[%clk 0:02:12]}  Nxg7 {[%clk 0:01:45]} 22. Nd4 {[%clk 0:02:09]}  Nxa4 {[%clk 0:01:41]} 23. Rab1 {[%clk 0:01:51]}  Nc5 {[%clk 0:01:38]} 24. f3 {[%clk 0:01:50]}  f5 {[%clk 0:01:36]} 25. exf5 {[%clk 0:01:48]}  Nxf5 {[%clk 0:01:37]} 26. Nxf5 {[%clk 0:01:47]}  Bxf5 {[%clk 0:01:36]} 27. Rxe8+ {[%clk 0:01:45]}  Rxe8 {[%clk 0:01:35]} 28. Re1 {[%clk 0:01:45]}  Rxe1 {[%clk 0:01:34]} 29. Qxe1 {[%clk 0:01:46]}  Qxb2 {[%clk 0:01:32]} 30. Qe8+ {[%clk 0:01:42]}  Kg7 {[%clk 0:01:26]} 31. Qe7+ {[%clk 0:01:43]}  Kg8 {[%clk 0:01:22]} 32. Qe8+ {[%clk 0:01:41]}  Kg7 {[%clk 0:01:23]} 33. Qe7+ {[%clk 0:01:41]}  Kg8 {[%clk 0:01:23]} 34. Qe8+ {[%clk 0:01:41]} 1/2-1/2